Workbook

Sheet Расчетная
B2: Входящие цены | I2: Первичные цены | L2: Вторичные цены | O2: Цифры БЕЗ НДС18%
B4: Наименование | C4: Хар-ки | D4: кол-во | E4: вход без% | F4: вход | G4: сумма | I4: Цена | J4: Стоимость | L4: Цена | M4: Стоимость | O4: Цена БЕЗ | P4: Стоимость БЕЗ | Q4: НДС
A5: 1 | B5: Огнетушитель порошковый ОП-2 (з) | C5: АВСЕ | D5: 20 | E5: 230 | F5: =E5*1.18 -> 271.4 | G5: =F5*D5 -> 5428 | I5: =F5*$F$34+$D$34 -> 502.1366063 | J5: =I5*D5 -> 10042.73213 | L5: =F5*$F$38+$D$38 -> 622.672 | M5: =L5*D5 -> 12453.44 | O5: =I5-(I5/1.18-I5)*(-1) -> 425.5394969 | P5: =O5*D5 -> 8510.789938 | Q5: =I5-O5 -> 76.59710944
A6: 2 | B6: Огнетушитель порошковый ОП-4(З) | C6: ВСЕ | D6: 20 | E6: 360 | F6: =E6*1.18 -> 424.8 | G6: =F6*D6 -> 8496 | I6: =F6*$F$34+$D$34 -> 709.2266063 | J6: =I6*D6 -> 14184.53213 | L6: =F6*$F$38+$D$38 -> 849.704 | M6: =L6*D6 -> 16994.08 | O6: =I6-(I6/1.18-I6)*(-1) -> 601.0394969 | P6: =O6*D6 -> 12020.78994 | Q6: =I6-O6 -> 108.1871094
A7: 3 | B7: Огнетушитель порошковый ОП-5(з) | C7: ВСЕ | D7: 55 | E7: 410 | F7: 483.8 | G7: =F7*D7 -> 26609 | I7: 788.8766063 | J7: =I7*D7 -> 43388.21335 | L7: 937.024 | M7: =L7*D7 -> 51536.32 | O7: 668.5394969 | P7: =O7*D7 -> 36769.67233 | Q7: =I7-O7 -> 120.3371094
A8: 4 | B8: Огнетушитель порошковый ОП-35(з) | C8: АВСЕ | D8: 21 | E8: 3030 | F8: 3575.4 | G8: =F8*D8 -> 75083.4 | I8: 4962.536606 | J8: =I8*D8 -> 104213.2687 | L8: 5512.592 | M8: 115764.432 | O8: 4205.539497 | P8: 88316.32943 | Q8: 756.9971094
A9: 5 | B9: Огнетушитель углекислотный ОУ-2 | C9: ВСЕ | D9: 10 | E9: 565 | F9: 666.7 | G9: =F9*D9 -> 6667 | I9: 1035.791606 | J9: =I9*D9 -> 10357.91606 | L9: 1207.716 | M9: 12077.16 | O9: 877.7894969 | P9: 8777.894969 | Q9: 158.0021094
A10: 6 | B10: Огнетушитель углекислотный ОУ-5 | C10: ВСЕ | D10: 2 | E10: 1055 | F10: 1244.9 | G10: =F10*D10 -> 2489.8 | I10: 1816.361606 | J10: =I10*D10 -> 3632.723213 | L10: 2063.452 | M10: 4126.904 | O10: 1539.289497 | P10: 3078.578994 | Q10: 277.0721094
A11: 7 | B11: Огнетушитель углекислотный ОУ-10 | C11: АВСЕ | D11: 59 | E11: 2620 | F11: 3091.6 | G11: 182404.4 | I11: 4309.406606 | J11: 254254.9898 | L11: 4796.568 | M11: 282997.512 | O11: 3652.039497 | P11: 215470.3303 | Q11: 657.3671094
A12: 8 | B12: ЩП-В (Стенд пожарный закрытый «КОМ с бункером для песка 0,1м3 (металлический) | D12: 10 | E12: 4200 | F12: 4956 | G12: 49560 | I12: 6826.346606 | J12: 68263.46606 | L12: 7555.88 | M12: 75558.8 | O12: 5785.039497 | P12: 57850.39497 | Q12: 1041.307109
A13: 9 | B13: Щит пожарный металлический ЩП-В в комплекте | D13: 5 | E13: 6695 | F13: 7900.1 | G13: 39500.5 | I13: 10800.88161 | J13: =I13*D13 -> 54004.40803 | L13: 11913.148 | M13: 59565.74 | O13: 9153.289497 | P13: 45766.44748 | Q13: 1647.592109
A14: 10 | B14: Щит пожарный металлический ЩП-Е в комплекте | D14: 2 | E14: 9035 | F14: 10661.3 | G14: 21322.6 | I14: 14528.50161 | J14: =I14*D14 -> 29057.00321 | L14: 15999.724 | M14: 31999.448 | O14: 12312.2895 | P14: 24624.57899 | Q14: 2216.212109
A15: 11 | B15: Ящик для песка 0,5куб.м | D15: 10 | E15: 2350 | F15: 2773 | G15: 27730 | I15: 3879.296606 | J15: =I15*D15 -> 38792.96606 | L15: 4325.04 | M15: 43250.4 | O15: 3287.539497 | P15: 32875.39497 | Q15: 591.7571094
A16: 12 | B16: Лом пожарный ЛПЛ-Щ | D16: 5 | E16: 399 | F16: 470.82 | G16: 2354.1 | I16: 771.3536063 | J16: 3856.768032 | L16: 917.8136 | M16: 4589.068 | O16: 653.6894969 | P16: 3268.447484 | Q16: 117.6641094
A17: 13 | B17: Ножницы для резки проводов диэлектрические НД-1 | D17: 1 | E17: 800 | F17: 944 | G17: 944 | I17: 1410.146606 | J17: =I17*D17 -> 1410.146606 | L17: 1618.12 | M17: 1618.12 | O17: 1195.039497 | P17: 1195.039497 | Q17: 215.1071094
A18: 14 | B18: Коврик диэлектрический 1000х1000 мм ГОСТ 4997-75 | D18: 1 | E18: 850 | F18: 1003 | G18: 1003 | I18: 1489.796606 | J18: =I18*D18 -> 1489.796606 | L18: 1705.44 | M18: 1705.44 | O18: 1262.539497 | P18: 1262.539497 | Q18: 227.2571094
A19: 15 | F19: 0 | G19: =F19*D19 -> 0 | I19: 135.7466063 | J19: 0 | L19: 221 | M19: 0 | O19: 115.0394969 | P19: 0 | Q19: 20.70710944
A20: 16 | F20: 0 | G20: =F20*D20 -> 0 | I20: 135.7466063 | J20: =I20*D20 -> 0 | L20: 221 | M20: 0 | O20: 115.0394969 | P20: 0 | Q20: 20.70710944
A21: 17 | F21: 0 | G21: =F21*D21 -> 0 | I21: 135.7466063 | J21: =I21*D21 -> 0 | L21: 221 | M21: 0 | O21: 115.0394969 | P21: 0 | Q21: 20.70710944
A22: 18 | F22: 0 | G22: =F22*D22 -> 0 | I22: 135.7466063 | J22: =I22*D22 -> 0 | L22: 221 | M22: 0 | O22: 115.0394969 | P22: 0 | Q22: 20.70710944
A23: 19 | F23: 0 | G23: =F23*D23 -> 0 | I23: 135.7466063 | J23: 0 | L23: 221 | M23: 0 | O23: 115.0394969 | P23: 0 | Q23: 20.70710944
A24: 20 | F24: 0 | G24: 0 | I24: 135.7466063 | J24: 0 | L24: 221 | M24: 0 | O24: 115.0394969 | P24: 0 | Q24: 20.70710944
A25: 21 | F25: 0 | G25: 0 | I25: 135.7466063 | J25: =I25*D25 -> 0 | L25: 221 | M25: 0 | O25: 115.0394969 | P25: 0 | Q25: 20.70710944
A26: 22 | F26: 0 | G26: 0 | I26: 135.7466063 | J26: =I26*D26 -> 0 | L26: 221 | M26: 0 | O26: 115.0394969 | P26: 0 | Q26: 20.70710944
A27: 23 | F27: 0 | G27: 0 | I27: 135.7466063 | J27: 0 | L27: 221 | M27: 0 | O27: 115.0394969 | P27: 0 | Q27: 20.70710944
A28: 24 | F28: 0 | G28: 0 | I28: 135.7466063 | J28: 0 | L28: 221 | M28: 0 | O28: 115.0394969 | P28: 0 | Q28: 20.70710944
A29: 25 | F29: 0 | G29: 0 | I29: 135.7466063 | J29: =I29*D29 -> 0 | L29: 221 | M29: 0 | O29: 115.0394969 | P29: 0 | Q29: 20.70710944
A30: 26 | F30: 0 | G30: 0 | I30: 135.7466063 | J30: =I30*D30 -> 0 | L30: 221 | M30: 0 | O30: 115.0394969 | P30: 0 | Q30: 20.70710944
F31: 0 | G31: =F31*D31 -> 0 | I31: 135.7466063 | J31: =I31*D31 -> 0 | L31: 221 | M31: =L31*D31 -> 0 | O31: 115.0394969 | P31: =O31*D31 -> 0 | Q31: =I31-O31 -> 20.70710944
D33: дос на поз | F33: Накрутка | G33: сумм зак | H33: доставка | I33: выручка | J33: сумма | K33: НДС18% | L33: выручка | M33: сумма | N33: НДС18% | P33: сумма
D34: =H34/SUM(D5:D33) -> 135.7466063 | E34: =SUM(E5:E31) -> 32599 | F34: 1.35 | G34: =SUM(G5:G31) -> 449591.8 | H34: 30000 | I34: =J34-G34-H34 -> 157357.13 | J34: =SUM(J5:J31) -> 636948.93 | K34: =(J34/1.18-J34)*(-1) -> 97161.70119 | L34: =M34-H34-G34 -> 234645.064 | M34: =SUM(M5:M31) -> 714236.864 | N34: =(M34/1.18-M34)*(-1) -> 108951.386 | P34: =SUM(P5:P32) -> 539787.2288
J35: =I34/(J34/100)/100 -> 0.2470482681 | P35: =J34-P34 -> 97161.70119
D37: дос на поз | F37: Накрутка | G37: сумм зак | H37: доставка | I37: выручка | J37: сумма | K37: НДС18%
D38: =H38/SUM(D20:D37) -> 221 | E38: =SUM(E20:E34)-E34 -> 0 | F38: 1.48 | G38: =SUM(G5:G30) -> 449591.8 | H38: 30000 | I38: =J38-G38-H38 -> 234645.064 | J38: =SUM(M5:M31) -> 714236.864 | K38: =(J38/1.18-J38)*(-1) -> 108951.386
J39: =I38/(J38/100)/100 -> 0.3285255576

Sheet МБМ18%
B2: Коммерческое предложение
B4: Для .
B6: Добрый день, предлагаем рассмотреть предложение на поставку оборудования:
B8: № | C8: Товар | D8: Кол-во | E8: Ед. | F8: Цена (с НДС 18%), руб. | G8: Сумма (с НДС 18%), руб.
B9: 1 | C9: =Расчетная!B5&" ("&(Расчетная!C5)&")" -> Огнетушитель порошковый ОП-2 (з) (АВСЕ) | D9: =Расчетная!D5 -> 20 | E9: шт. | F9: =Расчетная!L5 -> 622.672 | G9: =Расчетная!M5 -> 12453.44
B10: 2 | C10: =Расчетная!B6&" ("&(Расчетная!C6)&")" -> Огнетушитель порошковый ОП-4(З) (ВСЕ) | D10: =Расчетная!D6 -> 20 | E10: шт. | F10: =Расчетная!L6 -> 849.704 | G10: =Расчетная!M6 -> 16994.08
B11: 3 | C11: =Расчетная!B7&" ("&(Расчетная!C7)&")" -> Огнетушитель порошковый ОП-5(з) (ВСЕ) | D11: =Расчетная!D7 -> 55 | E11: шт. | F11: =Расчетная!L7 -> 937.024 | G11: =Расчетная!M7 -> 51536.32
B12: 4 | C12: =Расчетная!B8&" ("&(Расчетная!C8)&")" -> Огнетушитель порошковый ОП-35(з) (АВСЕ) | D12: =Расчетная!D8 -> 21 | E12: шт. | F12: =Расчетная!L8 -> 5512.592 | G12: =Расчетная!M8 -> 115764.432
B13: 5 | C13: =Расчетная!B9&" ("&(Расчетная!C9)&")" -> Огнетушитель углекислотный ОУ-2 (ВСЕ) | D13: =Расчетная!D9 -> 10 | E13: шт. | F13: =Расчетная!L9 -> 1207.716 | G13: =Расчетная!M9 -> 12077.16
B14: 6 | C14: =Расчетная!B10&" ("&(Расчетная!C10)&")" -> Огнетушитель углекислотный ОУ-5 (ВСЕ) | D14: =Расчетная!D10 -> 2 | E14: шт. | F14: =Расчетная!L10 -> 2063.452 | G14: =Расчетная!M10 -> 4126.904
B15: 7 | C15: =Расчетная!B11&" ("&(Расчетная!C11)&")" -> Огнетушитель углекислотный ОУ-10 (АВСЕ) | D15: =Расчетная!D11 -> 59 | E15: шт. | F15: =Расчетная!L11 -> 4796.568 | G15: =Расчетная!M11 -> 282997.512
B16: 8 | C16: =Расчетная!B12&" ("&(Расчетная!C12)&")" -> ЩП-В (Стенд пожарный закрытый «КОМ с бункером для песка 0,1м3 (металлический) () | D16: =Расчетная!D12 -> 10 | E16: шт. | F16: =Расчетная!L12 -> 7555.88 | G16: =Расчетная!M12 -> 75558.8
B17: 9 | C17: =Расчетная!B13&" ("&(Расчетная!C13)&")" -> Щит пожарный металлический ЩП-В в комплекте () | D17: =Расчетная!D13 -> 5 | E17: шт. | F17: =Расчетная!L13 -> 11913.148 | G17: =Расчетная!M13 -> 59565.74
B18: 10 | C18: =Расчетная!B14&" ("&(Расчетная!C14)&")" -> Щит пожарный металлический ЩП-Е в комплекте () | D18: =Расчетная!D14 -> 2 | E18: шт. | F18: =Расчетная!L14 -> 15999.724 | G18: =Расчетная!M14 -> 31999.448
B19: 11 | C19: =Расчетная!B15&" ("&(Расчетная!C15)&")" -> Ящик для песка 0,5куб.м () | D19: =Расчетная!D15 -> 10 | E19: шт. | F19: =Расчетная!L15 -> 4325.04 | G19: =Расчетная!M15 -> 43250.4
B20: 12 | C20: =Расчетная!B16&" ("&(Расчетная!C16)&")" -> Лом пожарный ЛПЛ-Щ () | D20: =Расчетная!D16 -> 5 | E20: шт. | F20: =Расчетная!L16 -> 917.8136 | G20: =Расчетная!M16 -> 4589.068
B21: 13 | C21: =Расчетная!B17&" ("&(Расчетная!C17)&")" -> Ножницы для резки проводов диэлектрические НД-1 () | D21: =Расчетная!D17 -> 1 | E21: шт. | F21: =Расчетная!L17 -> 1618.12 | G21: =Расчетная!M17 -> 1618.12
B22: 14 | C22: =Расчетная!B18&" ("&(Расчетная!C18)&")" -> Коврик диэлектрический 1000х1000 мм ГОСТ 4997-75 () | D22: =Расчетная!D18 -> 1 | E22: шт. | F22: =Расчетная!L18 -> 1705.44 | G22: =Расчетная!M18 -> 1705.44
D23: Итого: | G23: =Расчетная!M34 -> 714236.864
D24: В том числе НДС 18%: | G24: =Расчетная!N34 -> 108951.386
B26: - Срок поставки 20 дней;
B27: - Цена указана с учетом доставки до г. Архангельск;
B28: - Оплата в размере 100% по факту поставки товара Покупателю.
B30: С уважением,
B31: Менеджер отдела продаж «МБМ-Сервис»
B32: Дернов Илья Николаевич
B33: Тел.(342)228-16-16, доп.146; т/ф 228-11-28
B34: e-mail: din@mbm-group.ru
B35: сайт: www.mbm-group.ru

Sheet МБМ
B2: Коммерческое предложение
B4: Для .
B6: Добрый день, предлагаем рассмотреть предложение на поставку оборудования:
B8: № | C8: Товар | D8: Кол-во | E8: Ед. | F8: Цена (Без НДС 18%), руб. | G8: Сумма (Без НДС 18%), руб.
B9: 1 | C9: =Расчетная!B5&" ("&(Расчетная!C5)&")" -> Огнетушитель порошковый ОП-2 (з) (АВСЕ) | D9: =Расчетная!D5 -> 20 | E9: шт. | F9: =Расчетная!O5 -> 425.5394969 | G9: =Расчетная!P5 -> 8510.789938
B10: 2 | C10: =Расчетная!B6&" ("&(Расчетная!C6)&")" -> Огнетушитель порошковый ОП-4(З) (ВСЕ) | D10: =Расчетная!D6 -> 20 | E10: шт. | F10: =Расчетная!O6 -> 601.0394969 | G10: =Расчетная!P6 -> 12020.78994
B11: 3 | C11: =Расчетная!B7&" ("&(Расчетная!C7)&")" -> Огнетушитель порошковый ОП-5(з) (ВСЕ) | D11: =Расчетная!D7 -> 55 | E11: шт. | F11: =Расчетная!O7 -> 668.5394969 | G11: =Расчетная!P7 -> 36769.67233
B12: 4 | C12: =Расчетная!B8&" ("&(Расчетная!C8)&")" -> Огнетушитель порошковый ОП-35(з) (АВСЕ) | D12: =Расчетная!D8 -> 21 | E12: шт. | F12: =Расчетная!O8 -> 4205.539497 | G12: =Расчетная!P8 -> 88316.32943
B13: 5 | C13: =Расчетная!B9&" ("&(Расчетная!C9)&")" -> Огнетушитель углекислотный ОУ-2 (ВСЕ) | D13: =Расчетная!D9 -> 10 | E13: шт. | F13: =Расчетная!O9 -> 877.7894969 | G13: =Расчетная!P9 -> 8777.894969
B14: 6 | C14: =Расчетная!B10&" ("&(Расчетная!C10)&")" -> Огнетушитель углекислотный ОУ-5 (ВСЕ) | D14: =Расчетная!D10 -> 2 | E14: шт. | F14: =Расчетная!O10 -> 1539.289497 | G14: =Расчетная!P10 -> 3078.578994
B15: 7 | C15: =Расчетная!B11&" ("&(Расчетная!C11)&")" -> Огнетушитель углекислотный ОУ-10 (АВСЕ) | D15: =Расчетная!D11 -> 59 | E15: шт. | F15: =Расчетная!O11 -> 3652.039497 | G15: =Расчетная!P11 -> 215470.3303
B16: 8 | C16: =Расчетная!B12&" ("&(Расчетная!C12)&")" -> ЩП-В (Стенд пожарный закрытый «КОМ с бункером для песка 0,1м3 (металлический) () | D16: =Расчетная!D12 -> 10 | E16: шт. | F16: =Расчетная!O12 -> 5785.039497 | G16: =Расчетная!P12 -> 57850.39497
B17: 9 | C17: =Расчетная!B13&" ("&(Расчетная!C13)&")" -> Щит пожарный металлический ЩП-В в комплекте () | D17: =Расчетная!D13 -> 5 | E17: шт. | F17: =Расчетная!O13 -> 9153.289497 | G17: =Расчетная!P13 -> 45766.44748
B18: 10 | C18: =Расчетная!B14&" ("&(Расчетная!C14)&")" -> Щит пожарный металлический ЩП-Е в комплекте () | D18: =Расчетная!D14 -> 2 | E18: шт. | F18: =Расчетная!O14 -> 12312.2895 | G18: =Расчетная!P14 -> 24624.57899
B19: 11 | C19: =Расчетная!B15&" ("&(Расчетная!C15)&")" -> Ящик для песка 0,5куб.м () | D19: =Расчетная!D15 -> 10 | E19: шт. | F19: =Расчетная!O15 -> 3287.539497 | G19: =Расчетная!P15 -> 32875.39497
B20: 12 | C20: =Расчетная!B16&" ("&(Расчетная!C16)&")" -> Лом пожарный ЛПЛ-Щ () | D20: =Расчетная!D16 -> 5 | E20: шт. | F20: =Расчетная!O16 -> 653.6894969 | G20: =Расчетная!P16 -> 3268.447484
B21: 13 | C21: =Расчетная!B17&" ("&(Расчетная!C17)&")" -> Ножницы для резки проводов диэлектрические НД-1 () | D21: =Расчетная!D17 -> 1 | E21: шт. | F21: =Расчетная!O17 -> 1195.039497 | G21: =Расчетная!P17 -> 1195.039497
B22: 14 | C22: =Расчетная!B18&" ("&(Расчетная!C18)&")" -> Коврик диэлектрический 1000х1000 мм ГОСТ 4997-75 () | D22: =Расчетная!D18 -> 1 | E22: шт. | F22: =Расчетная!O18 -> 1262.539497 | G22: =Расчетная!P18 -> 1262.539497
D23: Итого: | G23: =Расчетная!P34 -> 539787.2288
B26: - Срок поставки 20 дней;
B27: - Цена указана с учетом доставки до г. Архангельск;
B28: - Оплата в размере 100% по факту поставки товара Покупателю.
B30: С уважением,
B31: Менеджер отдела продаж «МБМ-Сервис»
B32: Дернов Илья Николаевич
B33: Тел.(342)228-16-16, доп.146; т/ф 228-11-28
B34: e-mail: din@mbm-group.ru
B35: сайт: www.mbm-group.ru
